fUST/lending_fUST_20250701
["ID","MTS","AMOUNT","RATE_DAILY","PERIOD"]
[368697204,1751306955228,-413.57,0.00019507,2]
[368697205,1751306955250,-460.0,0.00019507,2]
[368697206,1751306955271,-460.0,0.00019507,2]
[368697207,1751306955292,-645.07,0.00019507,2]
[368697208,1751306955313,-460.0,0.00019507,2]
[368697209,1751306955335,-460.0,0.00019507,2]
[368697210,1751306955356,-460.0,0.00019508,2]
[368697211,1751306955376,-460.0,0.00019508,2]
[368697212,1751306955397,-460.0,0.00019509,2]
[368697213,1751306955419,-460.0,0.00019509,2]
[368697214,1751306955439,-460.0,0.00019509,2]
[368697215,1751306955459,-460.4227542,0.00019509,2]
[368697216,1751306955480,-460.0,0.00019509,2]
[368697217,1751306955500,-380.93996346,0.00019509,2]
[368697218,1751306955520,-460.0,0.00019509,2]
[368697219,1751306955541,-460.0,0.00019509,2]
[368697220,1751306955562,-460.45833372,0.00019509,2]
[368697221,1751306955583,-460.0,0.00019509,2]
[368697222,1751306955605,-509.51,0.00019509,2]
[368697223,1751306955625,-518.76677556,0.00019509,2]
[368697224,1751306955645,-460.0,0.00019509,2]
[368697225,1751306955665,-521.86,0.00019509,2]
[368697226,1751306955686,-461.62289177,0.00019509,2]
[368697227,1751306955708,-460.0,0.00019509,2]
[368697228,1751306955730,-460.0,0.00019509,2]
[368697229,1751306955751,-460.0,0.00019509,2]
[368697230,1751306955772,-460.0,0.00019509,2]
[368697231,1751306955793,-460.0,0.00019509,2]
[368697232,1751306955813,-460.0,0.00019509,2]
[368697233,1751306955834,-460.0,0.00019509,2]
[368697234,1751306955857,-460.0,0.00019509,2]
[368697235,1751306955877,-460.0,0.00019509,2]
[368697236,1751306955898,-460.0,0.00019509,2]
[368697237,1751306955919,-460.0,0.00019509,2]
[368697238,1751306955940,-460.0,0.00019509,2]
[368697239,1751306955960,-460.97542807,0.00019509,2]
[368697240,1751306955981,-460.0,0.00019509,2]
[368697241,1751306956001,-459.94185986,0.00019509,2]
[368697242,1751306956021,-608.42,0.00019509,2]
[368697243,1751306956042,-460.0,0.00019509,2]
[368697244,1751306956062,-460.0,0.00019509,2]
[368697245,1751306956082,-470.0,0.00019509,2]
[368697246,1751306956102,-460.0,0.00019509,2]
[368697247,1751306956125,-460.0,0.00019509,2]
[368697248,1751306956144,-460.0,0.00019509,2]
[368697249,1751306956166,-463.32376284,0.00019509,2]
[368697250,1751306956186,-460.0,0.00019509,2]
[368697251,1751306956208,-460.0,0.00019509,2]
[368697252,1751306956229,-460.0,0.00019509,2]
[368697253,1751306956249,-460.0,0.00019509,2]
[368697254,1751306956270,-460.0,0.00019509,2]
[368697255,1751306956291,-460.0,0.00019509,2]
[368697256,1751306956312,-460.0,0.00019509,2]
[368697257,1751306956333,-460.0,0.00019509,2]
[368697258,1751306956354,-497.48,0.00019509,2]
[368697259,1751306956375,-460.0,0.00019509,2]
[368697260,1751306956395,-460.0,0.00019509,2]
[368697261,1751306956417,-549.72,0.00019509,2]
[368697262,1751306956439,-460.0,0.00019509,2]
[368697263,1751306956460,-460.0,0.00019509,2]
[368697264,1751306956481,-460.0,0.00019509,2]
[368697265,1751306956500,-460.0,0.00019509,2]
[368697266,1751306956521,-460.0,0.00019509,2]
[368697267,1751306956542,-460.0,0.00019509,2]
[368697268,1751306956562,-500.0,0.00019509,2]
[368697269,1751306956584,-460.0,0.00019509,2]
[368697270,1751306956604,-460.0,0.00019509,2]
[368697271,1751306956733,-460.0,0.00019509,2]
[368697272,1751306956763,-517.02,0.00019509,2]
[368697273,1751306956785,-460.0,0.00019509,2]
[368697274,1751306956808,-460.0,0.00019509,2]
[368697275,1751306956829,-537.28,0.00019509,2]
[368697276,1751306956851,-460.0,0.00019509,2]
[368697277,1751306956872,-229.36658176,0.00019509,2]
[368697278,1751306956893,-460.0,0.00019509,2]
[368697279,1751306956914,-460.0,0.00019509,2]
[368697280,1751306956934,-460.0,0.00019509,2]
[368697281,1751306956958,-460.0,0.00019509,2]
[368697282,1751306956978,-157.47700191,0.00019509,2]
[368697283,1751306956999,-460.64442087,0.00019509,2]
[368697284,1751306957021,-460.0,0.00019509,2]
[368697285,1751306957040,-460.0,0.00019509,2]
[368697286,1751306957061,-460.0,0.00019509,2]
[368697287,1751306957081,-460.0,0.00019509,2]
[368697288,1751306957102,-460.0,0.00019509,2]
[368697289,1751306957127,-460.0,0.00019509,2]
[368697290,1751306957148,-286.94,0.00019509,2]
[368697291,1751306957169,-248.18,0.00019509,2]
[368697292,1751306957191,-460.0,0.00019509,2]
[368697293,1751306957216,-460.0,0.00019509,2]
[368697294,1751306957237,-460.0,0.00019509,2]
[368697295,1751306957258,-460.0,0.00019509,2]
[368697296,1751306957278,-460.0,0.00019509,2]
[368697297,1751306957300,-592.51,0.00019509,2]
[368697298,1751306957320,-460.0,0.00019509,2]
[368697299,1751306957343,-175.64,0.00019509,2]
[368697300,1751306957364,-460.0,0.00019509,2]
[368697301,1751306957384,-460.0,0.00019509,2]
[368697302,1751306957405,-153.1,0.00019509,2]
[368697303,1751306957426,-467.46386917,0.00019509,2]
[368697304,1751306957448,-460.0,0.00019509,2]
[368697305,1751306957470,-947.77,0.00019509,2]
[368697306,1751306957491,-326.06,0.00019509,2]
[368697307,1751306957511,-460.0,0.00019509,2]
[368697308,1751306957532,-460.0,0.00019509,2]
[368697309,1751306957554,-238.74,0.00019509,2]
[368697310,1751306957576,-266.3698288,0.00019509,2]
[368697311,1751306957599,-460.0,0.00019509,2]
[368697312,1751306957621,-273.78,0.00019509,2]
[368697313,1751306957642,-460.0,0.00019509,2]
[368697314,1751306957663,-550.84,0.00019509,2]
[368697315,1751306957683,-460.0,0.00019509,2]
[368697316,1751306957706,-460.0,0.00019509,2]
[368697317,1751306957727,-460.0,0.00019509,2]
[368697318,1751306957748,-460.0,0.00019509,2]
[368697319,1751306957771,-460.0,0.00019509,2]
[368697320,1751306957792,-264.70383587,0.00019509,2]
[368697321,1751306957813,-460.0,0.00019509,2]
[368697322,1751306957834,-176.5,0.00019509,2]
[368697323,1751306957856,-525.12,0.00019509,2]
[368697324,1751306957878,-460.0,0.00019509,2]
[368697325,1751306957899,-460.0,0.00019509,2]
[368697326,1751306957920,-460.0,0.00019509,2]
[368697327,1751306957941,-460.0,0.0001951,2]
[368697328,1751306957961,-460.0,0.0001951,2]
[368697329,1751306957982,-460.0,0.0001951,2]
[368697330,1751306958002,-179.6981978,0.0001951,2]
[368697331,1751306958023,-460.0,0.0001951,2]
[368697332,1751306958043,-460.0,0.0001951,2]
[368697333,1751306958067,-602.76900987,0.0001951,2]
[368697334,1751306958092,-460.0,0.0001951,2]
[368697335,1751306958119,-460.0,0.0001951,2]
[368697336,1751306958143,-520.74,0.0001951,2]
[368697337,1751306958167,-460.0,0.0001951,2]
[368697338,1751306958195,-1898.27972959,0.00019618,2]
[368697339,1751306958219,-460.0,0.00019781,2]
[368697340,1751306958242,-460.0,0.00019781,2]
[368697341,1751306958266,-460.0,0.00019781,2]
[368697342,1751306958288,-258.52,0.00019781,2]
[368697343,1751306958311,-460.0,0.00019781,2]
[368697344,1751306958333,-460.0,0.00019781,2]
[368697345,1751306958357,-460.0,0.00019781,2]
[368697346,1751306958380,-460.0,0.00019781,2]
[368697347,1751306958404,-460.0,0.00019781,2]
[368697348,1751306958428,-460.0,0.00019781,2]
[368697349,1751306958454,-645.07,0.00019781,2]
[368697350,1751306958478,-166.55,0.00019781,2]
[368697351,1751306958501,-460.0,0.00019781,2]
[368697352,1751306958524,-1636.41,0.00019782,2]
[368697353,1751306958547,-192.98,0.00019783,2]
[368697354,1751306958569,-191.24,0.00019783,2]
[368697355,1751306958595,-292.28,0.00019783,2]
[368697356,1751306958618,-460.0,0.00019783,2]
[368697357,1751306958642,-460.0,0.00019783,2]
[368697358,1751306958664,-175.28,0.00019783,2]
[368697359,1751306958685,-460.0,0.00019783,2]
[368697360,1751306958708,-460.0,0.00019783,2]
[368697361,1751306958731,-460.0,0.00019783,2]
[368697362,1751306958753,-200.12,0.00019783,2]
[368697363,1751306958775,-367.06,0.00019783,2]
[368697364,1751306958796,-460.0,0.00019783,2]
[368697365,1751306958818,-460.0,0.00019783,2]
[368697366,1751306958841,-592.43,0.00019783,2]
[368697367,1751306958862,-460.0,0.00019783,2]
[368697368,1751306958885,-231.06,0.00019783,2]
[368697369,1751306958907,-323.15361684,0.00019783,2]
[368697402,1751307031993,-256.10088568,0.00018658,2]
[368697403,1751307032003,-531.9,0.00018899,2]
[368697404,1751307032014,-460.0,0.00018899,2]
[368697405,1751307032024,-460.0,0.00018899,2]
[368697407,1751307032034,-556.31425497,0.00018899,2]
[368697408,1751307032044,-460.0,0.00019173,2]
[368697409,1751307032054,-460.0,0.00019173,2]
[368697410,1751307032063,-460.0,0.00019232,2]
[368697411,1751307032073,-460.0,0.00019232,2]
[368697412,1751307032083,-460.0,0.00019233,2]
[368697413,1751307032093,-460.0,0.00019233,2]
[368697414,1751307032102,-368.04,0.00019233,2]
[368697415,1751307032111,-460.0,0.00019233,2]
[368697416,1751307032120,-460.0,0.00019233,2]
[368697417,1751307032130,-460.0,0.00019233,2]
[368697418,1751307032139,-158.86605626,0.00019233,2]
[368697419,1751307032152,-500.0,0.00019233,2]
[368697420,1751307032162,-521.10518131,0.00019233,2]
[368697421,1751307032172,-500.0,0.00019233,2]
[368697422,1751307032182,-500.0,0.00019233,2]
[368697423,1751307032194,-500.0,0.00019233,2]
[368697424,1751307032204,-500.0,0.00019233,2]
[368697425,1751307032215,-500.0,0.00019233,2]
[368697426,1751307032226,-500.0,0.00019233,2]
[368697427,1751307032237,-500.0,0.00019233,2]
[368697428,1751307032247,-295.13255757,0.00019233,2]
[368697429,1751307032257,-500.0,0.00019233,2]
[368697430,1751307032267,-500.0,0.00019233,2]
[368697431,1751307032276,-168.5449294,0.00019233,2]
[368697432,1751307032286,-500.0,0.00019235,2]
[368697438,1751307032411,-460.0,0.00019235,2]
[368697440,1751307032421,-460.0,0.00019235,2]
[368697442,1751307032430,-569.1,0.00019235,2]
[368697444,1751307032441,-460.0,0.00019235,2]
[368697446,1751307032452,-460.0,0.00019235,2]
[368697448,1751307032462,-401.43232219,0.00019235,2]
[368697450,1751307032471,-367.0162845,0.00019235,2]
[368697452,1751307032481,-460.0,0.00019235,2]
[368697454,1751307032490,-460.0,0.00019235,2]
[368697456,1751307032500,-460.72969208,0.00019235,2]
[368697459,1751307032512,-460.0,0.00019235,2]
[368697460,1751307032522,-460.0,0.00019235,2]
[368697463,1751307032533,-460.0,0.00019235,2]
[368697465,1751307032543,-460.0,0.00019235,2]
[368697467,1751307032553,-460.0,0.00019235,2]
[368697469,1751307032564,-460.0,0.00019235,2]
[368697471,1751307032574,-460.0,0.00019235,2]
[368697473,1751307032583,-460.0,0.00019235,2]
[368697475,1751307032592,-460.0,0.00019235,2]
[368697477,1751307032601,-460.0,0.00019235,2]
[368697479,1751307032611,-460.0,0.00019235,2]
[368697480,1751307032621,-460.0,0.00019235,2]
[368697483,1751307032631,-517.90850738,0.00019235,2]
[368697485,1751307032641,-460.0,0.00019235,2]
[368697487,1751307032651,-460.0,0.00019235,2]
[368697489,1751307032661,-460.0,0.00019235,2]
[368697490,1751307032670,-460.0,0.00019235,2]
[368697492,1751307032681,-460.0,0.00019235,2]
[368697493,1751307032690,-460.0,0.00019235,2]
[368697494,1751307032701,-460.0,0.00019235,2]
[368697495,1751307032710,-460.0,0.00019235,2]
[368697496,1751307032720,-460.0,0.00019235,2]
[368697497,1751307032729,-462.5320067,0.00019235,2]
[368697498,1751307032739,-460.0,0.00019235,2]
[368697499,1751307032749,-460.0,0.00019235,2]
[368697500,1751307032759,-460.0,0.00019235,2]
[368697501,1751307032768,-460.0,0.00019235,2]
[368697503,1751307032778,-460.0,0.00019235,2]
[368697504,1751307032788,-460.0,0.00019235,2]
[368697505,1751307032797,-460.0,0.00019235,2]
[368697507,1751307032806,-460.0,0.00019235,2]
[368697509,1751307032815,-460.0,0.00019235,2]
[368697511,1751307032825,-460.0,0.00019235,2]
[368697512,1751307032834,-460.0,0.00019235,2]
[368697514,1751307032844,-460.0,0.00019235,2]
[368697515,1751307032854,-460.0,0.00019235,2]
[368697516,1751307032864,-460.0,0.00019235,2]
[368697518,1751307032873,-460.0,0.00019235,2]
[368697519,1751307032882,-460.0,0.00019235,2]
[368697520,1751307032892,-460.0,0.00019235,2]
[368697521,1751307032902,-460.0,0.00019235,2]
[368697522,1751307032912,-460.0,0.00019235,2]
[368697523,1751307032921,-460.0,0.00019506,2]
[368697525,1751307032930,-460.0,0.00019506,2]
[368697526,1751307032940,-460.0,0.00019507,2]
[368697527,1751307032950,-460.0,0.00019507,2]
[368697528,1751307032960,-392.44,0.00019507,2]
[368697529,1751307032969,-460.0,0.00019507,2]
[368697530,1751307032979,-460.0,0.00019507,2]
[368697531,1751307032988,-460.0,0.00019509,2]
[368697532,1751307032998,-460.0,0.00019509,2]
[368697533,1751307033007,-460.0,0.00019509,2]
[368697534,1751307033016,-460.0,0.00019509,2]
[368697535,1751307033026,-501.89474606,0.00019509,2]
[368697536,1751307033037,-460.0,0.00019509,2]
[368697537,1751307033047,-400.87868387,0.00019509,2]
[368697538,1751307033056,-460.0,0.00019509,2]
[368697539,1751307033067,-460.0,0.00019509,2]
[368697540,1751307033076,-253.64,0.00019509,2]
[368697541,1751307033087,-460.0,0.00019509,2]
[368697542,1751307033096,-460.0,0.00019509,2]
[368697543,1751307033106,-460.0,0.00019509,2]
[368697544,1751307033116,-460.0,0.00019509,2]
[368697545,1751307033126,-460.0,0.00019509,2]
[368697546,1751307033135,-193.77148901,0.00019509,2]
[368697547,1751307033149,-460.21781692,0.00019509,2]
[368697548,1751307033163,-464.23372034,0.00019509,2]
[368697549,1751307033173,-460.0,0.00019509,2]
[368697550,1751307033183,-182.11596199,0.00019509,2]
[368697551,1751307033194,-460.0,0.00019509,2]
[368697552,1751307033204,-460.0,0.00019509,2]
[368697553,1751307033214,-460.0,0.00019509,2]
[368697554,1751307033223,-460.0,0.00019509,2]
[368697555,1751307033234,-403.44414791,0.00019509,2]
[368697556,1751307033244,-460.0,0.00019509,2]
[368697557,1751307033253,-460.0,0.00019509,2]
[368697558,1751307033265,-647.6,0.00019509,2]
[368697559,1751307033275,-460.0,0.00019509,2]
[368697560,1751307033285,-589.96,0.00019509,2]
[368697561,1751307033295,-460.0,0.00019509,2]
[368697562,1751307033305,-460.0,0.00019509,2]
[368697563,1751307033315,-460.0,0.00019509,2]
[368697564,1751307033325,-323.67205386,0.00019509,2]
[368697565,1751307033338,-136.32794614,0.00019509,2]
[368697566,1751307033348,-464.48138051,0.00019509,2]
[368697567,1751307033359,-459.70790191,0.00019509,2]
[368697568,1751307033369,-266.06,0.00019509,2]
[368697569,1751307033380,-460.0,0.00019509,2]
[368697570,1751307033389,-460.0,0.00019509,2]
[368697571,1751307033400,-460.0,0.00019509,2]
[368697572,1751307033409,-460.7339748,0.00019509,2]
[368697573,1751307033419,-460.0,0.00019509,2]
[368697574,1751307033429,-193.59662991,0.00019759,2]
[368697575,1751307033438,-460.0,0.0001978,2]
[368697576,1751307033449,-460.0,0.0001978,2]
[368697577,1751307033459,-459.14,0.00019781,2]
[368697578,1751307033468,-222.28,0.00019781,2]
[368697579,1751307033478,-301.7,0.00019781,2]
[368697580,1751307033488,-165.34,0.00019781,2]
[368697581,1751307033498,-136.84638316,0.00019783,2]
[368697582,1751307033508,-301.55482555,0.00019783,2]
[368697583,1751307033520,-290.95517445,0.00019783,2]
[368697584,1751307033530,-460.0,0.00019783,2]
[368697585,1751307033540,-460.0,0.00019783,2]
[368697586,1751307033550,-151.28,0.00019783,2]
[368697587,1751307033559,-947.77,0.00019783,2]
[368697588,1751307033569,-460.0,0.00019783,2]
[368697589,1751307033578,-460.0,0.00019783,2]
[368697590,1751307033588,-333.74,0.00019783,2]
[368697591,1751307033598,-331.96,0.00019783,2]
[368697592,1751307033607,-460.0,0.00019783,2]
[368697593,1751307033617,-317.62,0.00019783,2]
[368697594,1751307033626,-197.4,0.00019783,2]
[368697595,1751307033636,-460.0,0.00019783,2]
[368697596,1751307033647,-460.0,0.00019783,2]
[368697597,1751307033656,-551.78,0.00019783,2]
[368697598,1751307033666,-460.0,0.00019783,2]
[368697599,1751307033676,-460.0,0.00019783,2]
[368697600,1751307033685,-460.0,0.00019783,2]
[368697601,1751307033696,-460.0,0.00019783,2]
[368697602,1751307033706,-460.0,0.00019783,2]
[368697603,1751307033716,-366.62,0.00019783,2]
[368697604,1751307033726,-460.0,0.00019783,2]
[368697605,1751307033736,-460.0,0.00019783,2]
[368697606,1751307033746,-647.6,0.00019783,2]
[368697607,1751307033756,-460.0,0.00019783,2]
[368697608,1751307033766,-333.95,0.00019783,2]
[368697609,1751307033776,-460.0,0.00019783,2]
[368697610,1751307033786,-405.7,0.00019783,2]
[368697611,1751307033797,-438.56,0.00019783,2]
[368697612,1751307033807,-460.0,0.00019783,2]
[368697613,1751307033818,-368.5,0.00019784,2]
[368697614,1751307033827,-170.12,0.00019784,2]
[368697615,1751307033836,-1898.27972959,0.00019859,2]
[368697616,1751307033846,-160.0,0.00019984,2]
[368697617,1751307033855,-500.0,0.00019988,2]
[368697618,1751307033866,-1636.41,0.00019996,2]
[368697619,1751307033877,-1636.41,0.00019996,2]
[368697620,1751307033886,-500.0,0.00019996,2]
[368697621,1751307033896,-460.0,0.00019997,2]
[368697622,1751307033907,-460.0,0.00019997,2]
[368697623,1751307033917,-460.0,0.00019997,2]
[368697624,1751307033927,-460.0,0.00019997,2]
[368697625,1751307033938,-460.0,0.00019997,2]
[368697626,1751307033948,-460.0,0.00019997,2]
[368697627,1751307033958,-460.0,0.00019997,2]
[368697628,1751307033968,-460.0,0.00019997,2]
[368697629,1751307033978,-460.0,0.00019997,2]
[368697630,1751307033988,-460.0,0.00019997,2]
[368697631,1751307033997,-460.0,0.00019997,2]
[368697632,1751307034008,-500.0,0.00019997,2]
[368697633,1751307034018,-460.0,0.00019997,2]
[368697634,1751307034028,-460.76335353,0.00019997,2]
[368697635,1751307034038,-460.0,0.00019997,2]
[368697636,1751307034047,-460.0,0.00019997,2]
[368697637,1751307034057,-460.0,0.00019997,2]
[368697638,1751307034067,-460.0,0.00019997,2]
[368697639,1751307034077,-526.40555116,0.00019997,2]
[368697640,1751307034088,-505.43575463,0.00019997,2]
[368697641,1751307034098,-460.0,0.00019997,2]
[368697642,1751307034108,-460.57524562,0.00019997,2]
[368697643,1751307034119,-460.0,0.00019997,2]
[368697644,1751307034128,-460.0,0.00019997,2]
[368697645,1751307034138,-460.0,0.00019997,2]
[368697646,1751307034151,-460.50074999,0.00019997,2]
[368697647,1751307034161,-460.49272169,0.00019997,2]
[368697648,1751307034171,-460.0,0.00019997,2]
[368697649,1751307034180,-460.0,0.00019997,2]
[368697650,1751307034190,-343.53358721,0.00019997,2]
[368697651,1751307034200,-460.0,0.00019997,2]
[368697652,1751307034209,-460.36062657,0.00019997,2]
[368697653,1751307034221,-588.0,0.00019997,2]
[368697654,1751307034231,-460.0,0.00019997,2]
[368697655,1751307034241,-460.0,0.00019997,2]
[368697656,1751307034252,-460.0,0.00019997,2]
[368697657,1751307034262,-461.37330202,0.00019997,2]
[368697658,1751307034272,-460.0,0.00019997,2]
[368697659,1751307034282,-460.0,0.00019997,2]
[368697660,1751307034292,-461.86697821,0.00019997,2]
[368697661,1751307034302,-461.01459285,0.00019997,2]
[368697662,1751307034312,-460.0,0.00019997,2]
[368697663,1751307034322,-575.02,0.00019997,2]
[368697664,1751307034331,-460.73542198,0.00019997,2]
[368697665,1751307034340,-460.0,0.00019997,2]
[368697666,1751307034350,-614.67,0.00019997,2]
[368697667,1751307034359,-460.0,0.00019997,2]
[368697668,1751307034369,-460.48551673,0.00019997,2]
[368697669,1751307034480,-460.0,0.00019997,2]
[368697670,1751307034490,-460.0,0.00019997,2]
[368697671,1751307034501,-460.0,0.00019997,2]
[368697672,1751307034511,-349.03260241,0.00019997,2]
[368697673,1751307034520,-461.22207833,0.00019997,2]
[368697674,1751307034529,-460.0,0.00019997,2]
[368697675,1751307034538,-460.0,0.00019997,2]
[368697676,1751307034547,-460.0,0.00019997,2]
[368697677,1751307034557,-461.01354824,0.00019997,2]
[368697678,1751307034567,-170.19020244,0.00019997,2]
[368697679,1751307034577,-460.0,0.00019997,2]
[368697680,1751307034586,-460.0,0.00019997,2]
[368697681,1751307034596,-460.53129345,0.00019997,2]
[368697682,1751307034605,-460.0,0.00019997,2]
[368697683,1751307034615,-460.0,0.00019997,2]
[368697684,1751307034624,-602.05,0.00019997,2]
[368697685,1751307034633,-460.0,0.00019997,2]
[368697686,1751307034640,-460.0,0.00019997,2]
[368697687,1751307034646,-460.0,0.00019997,2]
[368697688,1751307034655,-460.0,0.00019997,2]
[368697689,1751307034664,-460.0,0.00019997,2]
[368697690,1751307034673,-460.0,0.00019997,2]
[368697691,1751307034681,-460.0,0.00019997,2]
[368697692,1751307034689,-460.0,0.00019997,2]
[368697693,1751307034699,-460.0,0.00019997,2]
[368697694,1751307034708,-569.31,0.00019997,2]
[368697695,1751307034717,-460.0,0.00019997,2]
[368697696,1751307034726,-460.0,0.00019997,2]
[368697697,1751307034735,-460.0,0.00019997,2]
[368697698,1751307034744,-460.0,0.00019997,2]
[368697699,1751307034753,-461.1544636,0.00019997,2]
[368697700,1751307034764,-460.0,0.00019997,2]
[368697701,1751307034773,-460.0,0.00019997,2]
[368697702,1751307034783,-460.0,0.00019997,2]
[368697703,1751307034793,-151.0,0.00019997,2]
[368697704,1751307034803,-151.0,0.00019997,2]
[368697705,1751307034812,-460.0,0.00019997,2]
[368697706,1751307034823,-460.0,0.00019997,2]
[368697707,1751307034834,-460.22287429,0.00019997,2]
[368697708,1751307034843,-460.0,0.00019997,2]
[368697709,1751307034853,-460.0,0.00019997,2]
[368697710,1751307034863,-460.0,0.00019997,2]
[368697711,1751307034872,-460.0,0.00019997,2]
[368697712,1751307034882,-460.0,0.00019997,2]
[368697713,1751307034891,-460.0,0.00019997,2]
[368697714,1751307034902,-460.0,0.00019997,2]
[368697715,1751307034912,-460.0,0.00019997,2]
[368697716,1751307034922,-460.0,0.00019997,2]
[368697717,1751307034932,-460.0,0.00019997,2]
[368697718,1751307034941,-460.0,0.00019997,2]
[368697719,1751307034951,-460.0,0.00019997,2]
[368697720,1751307034961,-470.40741024,0.00019997,2]
[368697721,1751307034971,-460.0,0.00019997,2]
[368697722,1751307034981,-460.0,0.00019997,2]
[368697723,1751307034990,-460.0,0.00019997,2]
[368697724,1751307034999,-460.0,0.00019997,2]
[368697725,1751307035008,-460.0,0.00019997,2]
[368697726,1751307035018,-460.0,0.00019997,2]
[368697727,1751307035028,-460.0,0.00019997,2]
[368697728,1751307035037,-460.0,0.00019997,2]
[368697729,1751307035047,-460.0,0.00019997,2]
[368697730,1751307035056,-460.0,0.00019997,2]
[368697731,1751307035065,-460.0,0.00019997,2]
[368697732,1751307035075,-460.0,0.00019997,2]
[368697733,1751307035084,-460.0,0.00019997,2]
[368697734,1751307035094,-375.7355128,0.00019997,2]
[368697735,1751307035104,-460.0,0.00019997,2]
[368697736,1751307035113,-460.0,0.00019997,2]
[368697737,1751307035123,-460.0,0.00019997,2]
[368697738,1751307035132,-460.0,0.00019997,2]
[368697739,1751307035141,-460.0,0.00019997,2]
[368697740,1751307035153,-460.58896869,0.00019997,2]
[368697741,1751307035163,-460.0,0.00019997,2]
[368697742,1751307035172,-460.0,0.00019997,2]
[368697743,1751307035181,-460.0,0.00019997,2]
[368697744,1751307035191,-460.0,0.00019997,2]
[368697745,1751307035200,-460.0,0.00019997,2]
[368697746,1751307035210,-460.0,0.00019997,2]
[368697747,1751307035223,-500.0,0.00019997,2]
[368697748,1751307035234,-505.00006099,0.00019997,2]
[368697749,1751307035243,-344.87783912,0.00019997,2]
[368697750,1751307035254,-460.0,0.00019997,2]
[368697751,1751307035265,-460.0,0.00019997,2]
[368697752,1751307035274,-460.0,0.00019997,2]
[368697753,1751307035284,-460.0,0.00019997,2]
[368697754,1751307035293,-460.0,0.00019997,2]
[368697755,1751307035304,-460.0,0.00019997,2]
[368697756,1751307035314,-460.0,0.00019997,2]
[368697757,1751307035323,-460.0,0.00019997,2]
[368697758,1751307035334,-460.0,0.00019997,2]
[368697759,1751307035343,-481.78,0.00019997,2]
[368697760,1751307035354,-460.0,0.00019997,2]
[368697761,1751307035363,-460.0,0.00019997,2]
[368697762,1751307035372,-230.31346914,0.00019999,2]
[368697763,1751307035382,-837.16779106,0.00019999,2]
[368697764,1751307035392,-213.84631524,0.00019999,2]
[368697765,1751307035401,-214.99848635,0.00019999,2]
[368697766,1751307035410,-160.0,0.00019999,2]
[368697767,1751307035419,-160.0,0.0002,2]
[368697768,1751307035429,-151.0,0.00020024,2]
[368697769,1751307035438,-151.0,0.00020024,2]
[368697770,1751307035448,-151.0,0.00020052,2]
[368697771,1751307035456,-198.0,0.00020052,2]
[368697772,1751307035466,-460.0,0.00020054,2]
[368697773,1751307035475,-441.91304378,0.00020054,2]
[368697774,1751307035484,-460.0,0.00020055,2]
[368697775,1751307035494,-460.0,0.00020055,2]